bitfinex-derivatives/quotes_SOLF0:USTF0_20250520
["timestamp","ask_amount","ask_price","bid_price","bid_amount"]
[1747782973411,3.07055766,168.76,168.71,5.96614003]
[1747782973709,5.9242,168.75,168.71,5.96614003]
[1747782973910,5.9242,168.75,168.72,5.9251]
[1747782975603,5.9242,168.75,168.71,5.96614003]
[1747782975801,5.9242,168.75,168.71,0.04074003]
[1747782976108,5.9242,168.75,168.72,5.9251]
[1747782976811,5.9242,168.75,168.71,5.96604003]
[1747782978617,5.9245,168.74,168.71,5.96604003]
[1747782979110,3.07055766,168.76,168.71,5.96604003]
[1747782979314,5.9243,168.75,168.71,5.96604003]
[1747782979813,5.9244,168.74,168.71,5.96604003]
[1747782980414,5.9242,168.75,168.72,5.9249]
[1747782981611,3.07055766,168.76,168.71,0.04074003]
[1747782982414,3.07055766,168.76,168.74,5.9242]
[1747782984213,3.07055766,168.76,168.71,0.04074003]
[1747782984712,5.9245,168.74,168.71,5.96594003]
[1747782985120,3.07055766,168.76,168.71,0.04074003]
[1747782985318,5.925,168.73,168.71,0.04074003]
[1747782985512,3.07055766,168.76,168.71,0.04074003]
[1747782986021,5.9246,168.74,168.71,5.96624003]
[1747782986321,3.07055766,168.76,168.71,5.96624003]
[1747782986622,5.9248,168.74,168.71,5.96624003]
[1747782986918,3.07055766,168.76,168.72,5.9251]
[1747782987117,8.99465766,168.76,168.71,0.04074003]
[1747782987416,3.07055766,168.76,168.71,0.04074003]
[1747782987818,3.07055766,168.76,168.75,5.9241]
[1747782989323,109.38,168.85,168.79,5.9225]
[1747782989526,109.38,168.85,168.8,0.03873596]
[1747782989918,5.9213,168.83,168.8,0.03873596]
[1747782990525,5.9216,168.82,168.8,0.03873596]
[1747782990825,109.38,168.85,168.8,0.03873596]
[1747782991326,5.9219,168.82,168.8,0.03873596]
[1747782991721,5.922,168.81,168.8,0.03873596]
[1747782991921,6.34511276,168.84,168.73,109.36]
[1747782992138,6.34511276,168.84,168.74,5.9242]
[1747782992427,5.9236,168.77,168.74,5.9242]
[1747782992827,5.96732071,168.77,168.74,5.96383599]
[1747782993130,0.04372071,168.77,168.74,0.03963599]
[1747782993628,5.9237,168.76,168.74,0.03963599]
[1747782994526,5.96712071,168.77,168.74,0.03963599]
[1747782994829,0.04372071,168.77,168.74,0.03963599]
[1747782996028,0.04372071,168.77,168.76,5.9237]
[1747782996830,0.04372071,168.77,168.75,5.924]
[1747782997031,0.04372071,168.77,168.74,0.03963599]
[1747782997830,5.96742071,168.77,168.74,5.96383599]
[1747782998030,0.04372071,168.77,168.74,0.03963599]
[1747782999028,5.9239,168.76,168.74,0.03963599]
[1747782999231,0.04372071,168.77,168.74,0.03963599]
[1747782999526,5.9238,168.76,168.74,0.03963599]
[1747782999832,0.04372071,168.77,168.74,0.03963599]
[1747783000224,4.14032071,168.77,168.74,0.03963599]
[1747783000527,6.34511276,168.75,168.61,7.15301276]
[1747783000830,115.68511276,168.75,168.65,109.34]
[1747783001437,0.04316991,168.72,168.69,5.9259]
[1747783001632,0.04316991,168.72,168.68,0.04139915]
[1747783001926,5.96836991,168.72,168.68,0.04139915]
[1747783002125,0.04316991,168.72,168.68,0.04139915]
[1747783002831,0.04316991,168.72,168.7,5.9257]
[1747783004432,0.04316991,168.72,168.69,5.9261]
[1747783004636,0.04316991,168.72,168.68,0.04139915]
[1747783005434,0.04316991,168.72,168.7,5.9256]
[1747783005727,0.04316991,168.72,168.68,0.04139915]
[1747783006134,5.96836991,168.72,168.7,5.9257]
[1747783006334,0.04316991,168.72,168.68,0.04139915]
[1747783006834,0.04316991,168.72,168.71,5.9255]
[1747783009338,0.04316991,168.72,168.7,5.9258]
[1747783009929,0.04316991,168.72,168.68,364.04139915]
[1747783010538,0.04316991,168.72,168.71,5.9255]
[1747783011038,0.04316991,168.72,168.71,7.40710836]
[1747783011934,108.0334,168.79,168.74,5.9243]
[1747783012233,2.1061,168.81,168.71,1.48160836]
[1747783012540,117.19122249,168.84,168.73,6.34511276]
[1747783012734,0.03988705,168.8,168.77,0.04534226]
[1747783012941,0.03988705,168.8,168.79,5.9225]
[1747783014339,5.96218705,168.8,168.77,106.14534226]
[1747783014540,0.03988705,168.8,168.77,106.14534226]
[1747783014943,0.03988705,168.8,168.79,5.9227]
[1747783015744,0.03988705,168.8,168.78,5.9229]
[1747783016632,0.03988705,168.8,168.79,5.9227]
[1747783019045,0.03988705,168.8,168.78,5.9229]
[1747783019247,0.03988705,168.8,168.77,0.04534226]
[1747783019649,2.02138705,168.8,168.77,0.04534226]
[1747783019843,5.923,168.78,168.77,0.04534226]
[1747783021248,0.03988705,168.8,168.77,112.04534226]
[1747783021452,5.978,168.9,168.77,196.89045502]
[1747783021645,5.978,168.9,168.78,2.0528]
[1747783021846,5.978,168.9,168.79,190.5]
[1747783022447,5.9198,168.88,168.84,5.9207]
[1747783023048,5.9198,168.88,168.85,5.9204]
[1747783023243,6.34511276,168.94,168.84,106.06]
[1747783023550,12.33621276,168.94,168.83,106.0988782]
[1747783023750,5.9197,168.88,168.83,106.0988782]
[1747783024159,5.9197,168.88,168.84,5.9206]
[1747783024462,12.33621276,168.94,168.83,106.0988782]
[1747783024661,5.9911,168.94,168.86,5.92]
[1747783024861,5.9186,168.91,168.87,0.03757237]
[1747783025159,5.9186,168.91,168.87,5.95737237]
[1747783025563,5.9189,168.9,168.87,5.95737237]
[1747783025866,5.9189,168.9,168.87,0.03757237]
[1747783026863,5.9911,168.94,168.87,0.03757237]
[1747783027362,5.919,168.9,168.87,0.03757237]
[1747783028466,5.9192,168.89,168.87,0.03757237]
[1747783029260,5.9189,168.9,168.87,0.03757237]
[1747783029659,5.9911,168.94,168.87,0.03757237]
[1747783029861,5.9195,168.88,168.87,0.03757237]
[1747783030965,5.9193,168.89,168.87,0.03757237]
[1747783031367,116.15980976,168.92,168.87,0.03757237]
[1747783031565,5.9194,168.89,168.87,0.03757237]
[1747783031869,5.9911,168.94,168.87,0.03757237]
[1747783032465,5.9195,168.88,168.87,0.03757237]
[1747783032669,6.34511276,168.91,168.79,511.84]
[1747783032974,6.34511276,168.88,168.79,617.86]
[1747783033159,5.9219,168.82,168.79,511.84]
[1747783033359,1.9105,168.87,168.79,511.84]
[1747783033555,5.96231791,168.85,168.81,5.96298436]
[1747783033759,0.04161791,168.85,168.81,5.96298436]
[1747783034067,0.04161791,168.85,168.81,0.04118436]
[1747783034971,5.9216,168.82,168.81,0.04118436]
[1747783035979,0.04161791,168.85,168.81,0.04118436]
[1747783036575,5.9213,168.83,168.81,0.04118436]
[1747783037973,0.04161791,168.85,168.81,0.04118436]
[1747783038275,0.04161791,168.85,168.82,103.02]
[1747783038473,0.04161791,168.85,168.84,5.9209]
[1747783039674,0.04161791,168.85,168.82,103.02]
[1747783039876,0.04161791,168.85,168.81,0.04118436]
[1747783041283,0.04161791,168.85,168.82,5.9216]
[1747783041582,0.04161791,168.85,168.81,0.04118436]
[1747783041776,5.96231791,168.85,168.82,5.9215]
[1747783041977,0.04161791,168.85,168.82,5.9215]
[1747783042586,0.04161791,168.85,168.83,5.9213]
[1747783042883,0.04161791,168.85,168.81,0.04118436]
[1747783045379,0.04161791,168.85,168.81,103.06118436]
[1747783046587,5.96221791,168.85,168.82,5.9215]
[1747783047086,0.04161791,168.85,168.81,103.06118436]
[1747783047787,0.04161791,168.85,168.84,5.9209]
[1747783050380,2.045,168.92,168.83,103.02]
[1747783050577,5.9186,168.91,168.83,467.02]
[1747783050781,5.9186,168.91,168.88,5.9195]
[1747783051383,5.9186,168.91,168.88,5.96316161]
[1747783051892,7.9633,168.92,168.89,5.9192]
[1747783052093,2.0788,168.95,168.89,103.02]
[1747783052295,5.918,168.93,168.89,108.9389]
[1747783052695,5.918,168.93,168.89,103.02]
[1747783053096,2.0788,168.95,168.89,103.02]
[1747783053488,7.9961,168.95,168.91,5.9183]
[1747783054295,5.9173,168.95,168.92,5.9181]
[1747783054501,4.0764,168.98,168.92,0.04142445]
[1747783054887,4.0764,168.98,168.93,5.9176]
[1747783055096,4.0764,168.98,168.92,0.04142445]
[1747783055997,6.34511276,169.03,168.92,0.04142445]
[1747783056194,1.9915,169.02,168.96,0.04325267]
[1747783056397,6.34511276,169.0,168.96,0.04325267]
[1747783056797,5.9164,168.98,168.96,0.04325267]
[1747783057898,1.9915,169.02,168.96,0.04325267]
[1747783058399,5.9164,168.97,168.96,0.04325267]
[1747783058794,1.9915,169.02,168.96,0.04325267]
[1747783058795,8.33661276,169.02,168.96,0.04325267]
[1747783059191,1.9915,169.02,168.96,0.04325267]
[1747783060197,6.34511276,169.0,168.91,102.98]
[1747783060390,5.918,168.93,168.91,102.98]
[1747783060595,6.34511276,169.0,168.91,102.98]
[1747783060796,5.9166,168.97,168.93,5.9178]
[1747783061196,0.0442455,168.97,168.93,0.0408842]
[1747783061597,0.0442455,168.97,168.94,5.9171]
[1747783062402,0.0442455,168.97,168.93,0.0408842]
[1747783062705,5.9608455,168.97,168.93,5.9583842]
[1747783062901,0.0442455,168.97,168.93,0.0408842]
[1747783063201,5.9168,168.96,168.93,0.0408842]
[1747783063505,0.0442455,168.97,168.93,0.0408842]
[1747783064400,5.9168,168.96,168.93,0.0408842]
[1747783065101,0.0442455,168.97,168.93,0.0408842]
[1747783065807,0.0442455,168.97,168.94,5.9174]
[1747783066397,0.0442455,168.97,168.93,0.0408842]
[1747783066899,0.0442455,168.97,168.95,5.9169]
[1747783067497,0.0442455,168.97,168.96,5.9167]
[1747783067705,0.0442455,168.97,168.93,0.0408842]
[1747783069203,0.0442455,168.97,168.96,5.9167]
[1747783070208,0.0442455,168.97,168.93,0.0408842]
[1747783071301,0.0442455,168.97,168.94,5.9174]
[1747783071906,5.9606455,168.97,168.94,5.9174]
[1747783072208,5.9606455,168.97,168.93,5.9585842]
[1747783072509,5.9606455,168.97,168.93,0.0408842]
[1747783072808,0.0442455,168.97,168.94,5.9174]
[1747783073107,0.0442455,168.97,168.93,0.0408842]
[1747783073309,5.9608455,168.97,168.93,5.9586842]
[1747783073705,0.0442455,168.97,168.93,5.9586842]
[1747783074106,5.917,168.96,168.93,0.0408842]
[1747783074410,0.0442455,168.97,168.93,0.0408842]
[1747783075307,6.34511276,168.96,168.93,0.0408842]
[1747783075515,6.34511276,168.96,168.84,1.9628]
[1747783075702,6.34511276,168.93,168.85,104.16]
[1747783076206,5.9184,168.92,168.88,5.9195]
[1747783076514,5.96132788,168.92,168.88,5.95997842]
[1747783076809,0.04292788,168.92,168.88,0.04047842]
[1747783077813,0.04292788,168.92,168.91,5.9185]
[1747783082107,2.788e-05,168.92,168.91,5.9185]
[1747783082307,2.0188,169.01,168.9,104.16]
[1747783082507,8.36391276,169.01,168.9,104.16]
[1747783082904,8.36391276,169.01,168.9,468.16]
[1747783083109,2.0188,169.01,168.91,1.47948948]
[1747783083310,0.04303006,168.97,168.96,5.9164]
[1747783084812,0.04303006,168.97,168.94,0.04152638]
[1747783085414,0.04303006,168.97,168.96,5.9168]
[1747783087115,5.95943006,168.97,168.94,0.04152638]
[1747783087321,0.04303006,168.97,168.94,0.04152638]
[1747783087722,0.04303006,168.97,168.96,5.9168]
[1747783089721,104.16,169.06,168.94,0.04152638]
[1747783089922,104.16,169.06,168.94,1.972]
[1747783090216,5.9143,169.04,169.01,5.9148]
[1747783090722,5.9143,169.04,169.01,5.95571249]
[1747783090922,5.9138,169.05,169.02,5.9145]
[1747783091117,104.16,169.06,169.01,0.04091249]
[1747783091319,5.8782,169.08,169.01,0.04091249]
[1747783091518,1.02995146,169.19,169.01,0.04091249]
[1747783091519,11.09122249,169.11,169.01,0.04091249]
[1747783091714,3.8352,169.1,169.01,0.04091249]
[1747783091916,6.34511276,169.08,169.01,0.04091249]
[1747783092613,5.9133,169.06,169.01,5.95561249]
[1747783092809,6.34511276,169.08,169.01,0.04091249]
[1747783093016,3.8352,169.1,169.01,0.04091249]
[1747783093417,10.18031276,169.1,169.01,0.04091249]
[1747783093620,5.9138,169.05,169.02,104.14]
[1747783093916,3.8352,169.1,169.02,104.14]
[1747783094113,3.8352,169.1,169.02,5.9146]
[1747783094315,6.34511276,169.09,169.01,104.18091249]
[1747783094723,5.9136,169.06,169.01,110.09561249]
[1747783095327,5.9136,169.06,169.02,5.9146]
[1747783097319,5.9136,169.06,169.03,5.9143]
[1747783097823,5.9136,169.06,169.02,5.9146]
[1747783098017,6.34511276,169.09,169.02,5.9146]
[1747783098321,3.8352,169.1,169.02,5.9144]
[1747783098521,3.8352,169.1,169.01,468.18091249]
[1747783099022,9.7473,169.1,169.01,104.18091249]
[1747783099223,3.8352,169.1,169.01,104.18091249]
[1747783099632,3.8352,169.1,169.04,5.9137]
[1747783099927,5.9123,169.09,169.05,0.04175854]
[1747783100115,3.8352,169.1,169.05,0.04175854]
[1747783100321,5.9125,169.09,169.05,0.04175854]
[1747783101028,5.9125,169.09,169.05,5.95525854]
[1747783101225,5.9126,169.08,169.05,5.95525854]
[1747783101525,3.8352,169.1,169.05,0.04175854]
[1747783103131,5.9122,169.09,169.05,5.95525854]
[1747783103330,5.9122,169.09,169.05,0.04175854]
[1747783103530,3.8352,169.1,169.05,0.04175854]
[1747783104229,9.7471,169.1,169.06,5.9131]
[1747783104628,8.33461276,169.12,169.05,0.04175854]
[1747783104929,1.9895,169.12,169.09,5.9122]
[1747783105129,1.9895,169.12,169.09,5.95772359]
[1747783105331,1.9895,169.12,169.1,5.9118]
[1747783105934,1.9895,169.12,169.09,0.04552359]
[1747783108036,5.9115,169.11,169.09,0.04552359]
[1747783108836,5.9119,169.1,169.09,0.04552359]
[1747783109635,5.9116,169.11,169.09,0.04552359]
[1747783109830,4.034,169.12,169.09,0.04552359]
[1747783110137,9.9454,169.12,169.09,0.04552359]
[1747783110732,4.034,169.12,169.09,0.04552359]
[1747783111330,9.9452,169.12,169.09,5.95772359]
[1747783112339,5.9116,169.11,169.09,0.04552359]
[1747783114239,4.034,169.12,169.09,0.04552359]
[1747783115038,5.9119,169.1,169.09,0.04552359]
[1747783115539,4.034,169.12,169.03,103.44]
[1747783115832,5.9126,169.08,169.03,103.44]
[1747783116038,6.34511276,169.1,169.03,103.44]
[1747783116243,5.9128,169.08,169.04,5.9137]
[1747783116536,0.04385111,169.08,169.04,0.03863372]
[1747783116940,0.04385111,169.08,169.06,5.9132]
[1747783118038,0.04385111,169.08,169.04,0.03863372]
[1747783118240,0.04385111,169.08,169.07,5.9129]
[1747783119138,0.04385111,169.08,169.04,0.03863372]
[1747783119637,0.04385111,169.08,169.07,5.9129]
[1747783125142,6.34511276,169.19,169.12,5.9112]
[1747783125339,6.34511276,169.19,169.05,6.34511276]
[1747783125340,5.91,169.16,169.08,103.42]
[1747783126139,105.4895,169.19,169.1,0.04361273]
[1747783126744,5.9101,169.16,169.12,5.9111]
[1747783126945,5.9101,169.16,169.12,5.95523282]
[1747783127140,5.9095,169.17,169.13,5.9105]
[1747783127333,105.4895,169.19,169.12,0.04413282]
[1747783128340,5.9095,169.17,169.14,5.9104]
[1747783129842,5.9102,169.15,169.12,5.95523282]
[1747783130049,5.9102,169.15,169.12,0.04413282]
[1747783130443,2.0695,169.19,169.12,0.04413282]
[1747783130946,2.0695,169.19,169.14,5.9102]
[1747783131447,5.9091,169.18,169.15,5.9101]
[1747783132041,2.0695,169.19,169.16,5.9097]
[1747783132237,3.07055766,169.26,169.16,0.04456327]
[1747783132442,6.0308,169.25,169.16,0.04456327]
[1747783132641,5.908,169.22,169.18,5.9088]
[1747783132837,6.0308,169.25,169.18,0.03800847]
[1747783133045,5.9082,169.21,169.18,0.03800847]
[1747783133346,6.34511276,169.24,169.18,0.03800847]
[1747783134150,5.9079,169.22,169.18,5.94710847]
[1747783135550,5.9081,169.21,169.18,0.03800847]
[1747783136250,6.0308,169.25,169.18,0.03800847]
[1747783136652,5.9072,169.24,169.2,5.9084]
[1747783136853,6.0308,169.25,169.18,0.03800847]
[1747783137247,11.9377,169.25,169.2,5.9082]
[1747783137543,6.0308,169.25,169.18,0.03800847]
[1747783137846,5.9071,169.24,169.2,5.9081]
[1747783138350,6.0308,169.25,169.18,0.03800847]
[1747783138545,12.37591276,169.25,169.18,0.03800847]
[1747783138746,5.9077,169.23,169.18,0.03800847]
[1747783138946,6.0308,169.25,169.18,5.94690847]
[1747783139151,6.0308,169.25,169.18,0.03800847]
[1747783139954,5.9083,169.21,169.18,0.03800847]
[1747783140448,5.9077,169.22,169.18,0.03800847]
[1747783140649,6.0308,169.25,169.18,5.94710847]
[1747783141256,6.0308,169.25,169.18,0.03800847]
[1747783142254,6.34511276,169.23,169.18,0.03800847]
[1747783142659,104.98,169.22,169.14,5.9104]
[1747783142853,6.34511276,169.2,169.11,510.8]
[1747783143160,1.9382,169.19,169.11,5.9113]
[1747783143659,0.03859843,169.17,169.13,0.04091473]
[1747783143960,5.9104,169.15,169.13,0.04091473]
[1747783145355,0.03859843,169.17,169.13,0.04091473]
[1747783146459,0.03859843,169.17,169.14,5.9104]
[1747783147059,5.94819843,169.17,169.13,5.95161473]
[1747783147358,0.03859843,169.17,169.13,0.04091473]
[1747783148259,5.91,169.16,169.13,0.04091473]
[1747783148452,0.03859843,169.17,169.13,0.04091473]
[1747783148758,5.94819843,169.17,169.13,5.95141473]
[1747783149155,5.94819843,169.17,169.14,5.9104]
[1747783149553,0.03859843,169.17,169.14,5.9104]
[1747783149756,0.03859843,169.17,169.13,0.04091473]
[1747783149951,0.03859843,169.17,169.15,5.9099]
[1747783152465,0.03859843,169.17,169.13,5.95141473]
[1747783153265,5.94819843,169.17,169.13,5.95141473]
[1747783153463,5.94819843,169.17,169.14,5.9104]
[1747783153862,5.9099,169.16,169.13,5.95161473]
[1747783154056,0.03859843,169.17,169.13,5.95161473]
[1747783154364,5.94809843,169.17,169.13,5.95161473]
[1747783154566,5.94809843,169.17,169.14,5.9105]
[1747783154759,0.03859843,169.17,169.14,5.9105]
[1747783155064,0.03859843,169.17,169.13,0.04091473]
[1747783155275,0.03859843,169.17,169.14,5.9102]
[1747783155562,5.94809843,169.17,169.14,5.9102]
[1747783155764,0.03859843,169.17,169.14,5.9102]
[1747783156357,0.03859843,169.17,169.15,5.9101]
[1747783156967,0.03859843,169.17,169.14,5.9103]
[1747783158161,5.94809843,169.17,169.14,5.9103]
[1747783158369,0.03859843,169.17,169.13,5.95161473]
[1747783158760,0.03859843,169.17,169.13,0.04091473]
[1747783159069,111.56511276,169.16,169.06,1.28571139]
[1747783159270,6.34511276,169.1,169.06,1.28571139]
[1747783159460,111.56511276,169.1,169.06,1.28571139]
[1747783159967,111.60961077,169.1,169.06,1.32838019]
[1747783160565,111.60961077,169.1,169.04,1.7858581]
[1747783160766,3.968,169.09,169.04,1.7858581]
[1747783161266,5.9147,169.03,168.98,111.1359]
[1747783161465,6.34511276,169.07,168.98,105.22]
[1747783161762,5.9149,169.02,169.01,0.04532002]
[1747783161970,111.58511276,169.04,168.95,106.39314241]
[1747783162359,5.9153,169.01,168.95,112.31004241]
[1747783162560,5.9153,169.01,168.95,106.39314241]
[1747783162774,105.24,169.04,168.95,106.39314241]
[1747783162968,111.1542,169.04,169.0,0.03734819]
[1747783163168,105.24,169.04,169.0,0.03734819]
[1747783163560,105.24,169.04,169.0,5.95254819]
[1747783164466,105.24,169.04,169.01,5.915]
[1747783166273,105.24,169.04,169.0,0.03734819]
[1747783166767,0.04258423,169.05,169.0,0.03734819]
[1747783167071,0.04258423,169.05,169.02,5.9144]
[1747783167463,0.04258423,169.05,169.0,0.03734819]
[1747783168671,0.04258423,169.05,169.02,5.9144]
[1747783168971,0.04258423,169.05,169.0,0.03734819]
[1747783169172,5.95628423,169.05,169.01,5.915]
[1747783169363,0.04258423,169.05,169.01,5.915]
[1747783170272,0.04258423,169.05,169.02,5.9147]
[1747783170672,0.04258423,169.05,169.0,0.03734819]
[1747783170974,0.04258423,169.05,169.01,5.9149]
[1747783171373,5.95628423,169.05,169.01,5.9149]
[1747783171673,5.95628423,169.05,169.0,0.03734819]
[1747783171871,5.914,169.04,169.0,5.95254819]
[1747783172474,5.914,169.04,169.0,0.03734819]
[1747783175078,0.04258423,169.05,169.0,0.03734819]
[1747783176279,5.9142,169.04,169.0,0.03734819]
[1747783176577,0.04258423,169.05,169.0,0.03734819]
[1747783177180,5.9147,169.03,169.0,0.03734819]
[1747783177379,0.04258423,169.05,169.0,0.03734819]
[1747783178392,5.915,169.01,169.0,0.03734819]
[1747783178691,105.3,169.03,169.0,0.03734819]
[1747783179193,105.3,169.03,169.0,5.95244819]
[1747783179495,105.3,169.03,169.0,0.03734819]
[1747783179882,0.04258423,169.05,169.0,0.03734819]
[1747783180990,0.04258423,169.05,169.03,5.9141]
[1747783181186,0.04258423,169.05,169.0,0.03734819]
[1747783181383,0.04258423,169.05,169.0,105.35734819]
[1747783181583,0.04258423,169.05,169.04,5.914]
[1747783182797,5.9115,169.12,169.08,5.9123]
[1747783183094,105.3,169.13,169.08,5.9123]
[1747783183491,5.9118,169.11,169.08,5.9123]
[1747783183795,5.95043227,169.11,169.08,5.95757218]
[1747783184191,5.9119,169.1,169.08,0.04527218]
[1747783185797,0.03863227,169.11,169.08,0.04527218]
[1747783185995,0.03863227,169.11,169.08,5.95777218]
[1747783186390,0.03863227,169.11,169.08,0.04527218]
[1747783187198,0.03863227,169.11,169.08,5.95787218]
[1747783187399,0.03863227,169.11,169.08,0.04527218]
[1747783188892,0.03863227,169.11,169.08,5.95767218]
[1747783189401,0.03863227,169.11,169.09,5.9122]
[1747783189700,0.03863227,169.11,169.08,0.04527218]
[1747783190002,0.03863227,169.11,169.09,5.9122]
[1747783190196,0.03863227,169.11,169.08,0.04527218]
[1747783192104,0.03863227,169.11,169.1,5.9119]
[1747783192299,0.03863227,169.11,169.08,0.04527218]
[1747783192704,0.03863227,169.11,169.1,5.9119]
[1747783193805,0.03863227,169.11,169.09,5.9121]
[1747783194005,0.03863227,169.11,169.08,0.04527218]
[1747783194202,6.38374503,169.11,169.08,0.04527218]
[1747783194403,6.38374503,169.11,168.99,366.0291]
[1747783194605,6.34511276,169.07,168.99,364.0]
[1747783194804,5.9143,169.04,168.97,465.74]
[1747783195004,108.08511276,169.07,168.97,465.74]
[1747783195302,0.037288,169.04,169.0,0.04445597]
[1747783197001,0.037288,169.04,169.03,5.9143]
[1747783197707,101.74,169.11,169.07,5.9129]
[1747783197895,101.74,169.11,169.02,465.74]
[1747783198801,0.03990512,169.08,169.05,0.03875978]
[1747783199110,0.03990512,169.08,169.07,5.9129]
[1747783199406,0.03990512,169.08,169.05,0.03875978]
[1747783200309,0.03990512,169.08,169.06,5.9132]
[1747783200915,0.03990512,169.08,169.05,0.03875978]
[1747783201707,0.03990512,169.08,169.07,5.9129]
[1747783202007,103.7854,169.15,169.07,101.74]
[1747783202209,5.9105,169.14,169.11,5.9112]
[1747783202811,5.94793152,169.14,169.11,5.94888674]
[1747783203013,0.03743152,169.14,169.11,0.03768674]
[1747783203604,5.9087,169.2,169.17,5.9094]
[1747783203809,2.0742,169.22,169.12,101.72]
[1747783204212,11.09122249,169.23,169.13,6.34511276]
[1747783204609,11.09122249,169.23,169.12,101.72]
[1747783204610,0.04499179,169.2,169.17,5.9091]
[1747783205008,0.04499179,169.2,169.16,0.03941163]
[1747783205312,6.39010455,169.2,169.16,0.03941163]
[1747783205906,5.9094,169.17,169.16,0.03941163]
[1747783206720,6.34511276,169.17,169.08,105.7483]
[1747783207713,0.03748967,169.14,169.11,0.03740903]
[1747783208412,0.03748967,169.14,169.11,5.94860903]
[1747783208609,5.94798967,169.14,169.11,5.94860903]
[1747783209212,5.94798967,169.14,169.11,0.03740903]
[1747783210112,5.94798967,169.14,169.11,5.94890903]
[1747783210607,0.03748967,169.14,169.11,5.94890903]
[1747783212114,0.03748967,169.14,169.12,5.9111]
[1747783212311,5.94798967,169.14,169.11,0.03740903]
[1747783212612,0.03748967,169.14,169.11,0.03740903]
[1747783212814,5.9112,169.12,169.11,0.03740903]
[1747783213315,5.9119,169.1,169.03,612.68]
[1747783213614,5.9119,169.1,169.05,5.9135]
[1747783214009,5.9124,169.09,169.05,5.9135]
[1747783214217,5.9124,169.09,169.07,0.04376921]
[1747783214614,5.912,169.1,169.07,0.04376921]
[1747783214804,0.03846144,169.11,169.07,0.04376921]
[1747783215515,0.03846144,169.11,169.08,5.9123]
[1747783216103,0.03846144,169.11,169.07,0.04376921]
[1747783218222,0.03846144,169.11,169.1,5.9119]
[1747783218515,0.03846144,169.11,169.07,0.04376921]
[1747783218911,5.95036144,169.11,169.07,0.04376921]
[1747783219116,0.03846144,169.11,169.07,0.04376921]
[1747783219618,5.912,169.1,169.07,0.04376921]
[1747783221522,0.03846144,169.11,169.07,0.04376921]
[1747783223422,5.9126,169.08,169.07,0.04376921]
[1747783223721,6.34511276,169.08,169.0,364.0]
[1747783223923,6.34511276,169.02,168.98,1.13493766]
[1747783224117,6.34511276,169.02,168.96,1.7858581]
[1747783224118,6.34511276,169.0,168.96,1.7858581]
[1747783224509,113.4154,169.01,168.96,1.7858581]
[1747783224713,0.03823697,169.0,168.97,0.03937123]
[1747783225013,5.9162,168.98,168.97,0.03937123]
[1747783225217,6.38334973,169.0,168.97,0.03937123]
[1747783225521,12.29904973,169.0,168.97,0.03937123]
[1747783225923,6.38334973,169.0,168.97,0.03937123]
[1747783226122,12.29884973,169.0,168.97,0.03937123]
[1747783226811,5.9158,168.99,168.97,0.03937123]
[1747783227118,6.38334973,169.0,168.95,1.13672068]
[1747783227325,5.9161,168.98,168.95,1.13672068]
[1747783227711,6.38334973,169.0,168.95,1.13672068]
[1747783227922,6.38334973,169.0,168.96,0.04416207]
[1747783228125,12.29904973,169.0,168.96,0.04416207]
[1747783228423,6.38334973,169.0,168.96,0.04416207]
[1747783228624,6.34511276,168.97,168.87,113.4574]
[1747783229221,6.34511276,168.97,168.92,5.9181]
[1747783229419,1.9185,169.0,168.9,241.02511477]
[1747783229619,6.34511276,168.96,168.93,0.03994979]
[1747783229821,5.9174,168.95,168.93,0.03994979]
[1747783230522,5.9175,168.94,168.87,473.42]
[1747783230724,115.82511276,168.96,168.83,475.2658581]
[1747783231124,115.82511276,168.96,168.83,481.61097086]
[1747783231424,115.82511276,168.96,168.88,0.04531439]
[1747783231625,0.03758673,168.91,168.88,364.04531439]
[1747783231929,0.03758673,168.91,168.9,5.9189]
[1747783238432,5.95638673,168.91,168.88,0.04531439]
[1747783239228,5.9189,168.9,168.88,0.04531439]
[1747783239429,6.38269949,168.91,168.88,0.04531439]
[1747783240029,6.38269949,168.91,168.88,5.96481439]
[1747783240224,6.38269949,168.91,168.78,517.50511276]
[1747783240225,0.03758673,168.91,168.68,3.57651123]
[1747783240430,6.3241264,168.88,168.75,2.1018]
[1747783240632,6.3241264,168.88,168.78,5.9228]
[1747783240839,6.1818,168.93,168.76,111.4985]
[1747783241241,6.35379815,168.86,168.83,0.04520861]